[Event "Live Chess"]
[Site "Chess.com"]
[Date "2023.05.20"]
[Round "-"]
[White "PaulHumphreys"]
[Black "JashonTOGM"]
[Result "1-0"]
[WhiteElo "1367"]
[BlackElo "1008"]
[TimeControl "300"]
[EndTime "9:41:13 PDT"]
[Termination "PaulHumphreys won by resignation"]

1. d4 {[%clk 0:04:58.2]} 1... d5 {[%clk 0:04:56.2]} 2. Nc3 {[%clk 0:04:57.1]}
2... Nf6 {[%clk 0:04:52.7]} 3. Bf4 {[%clk 0:04:55.6]} 3... Bf5 {[%clk
0:04:36.8]} 4. Nb5 {[%clk 0:04:26.9]} 4... Na6 {[%clk 0:04:34.5]} 5. e3 {[%clk
0:04:23.2]} 5... Qd7 {[%clk 0:04:25]} 6. a4 {[%clk 0:04:15.8]} 6... O-O-O {[%clk
0:04:19.7]} 7. Nxa7+ {[%clk 0:04:10.4]} 7... Kb8 {[%clk 0:04:17.3]} 8. Nb5
{[%clk 0:03:49.5]} 8... Nb4 {[%clk 0:04:07.7]} 9. Rc1 {[%clk 0:03:40.3]} 9... e6
{[%clk 0:03:48.5]} 10. c3 {[%clk 0:03:32.3]} 10... Nc2+ {[%clk 0:03:45.5]} 11.
Rxc2 {[%clk 0:03:30.8]} 11... Bxc2 {[%clk 0:03:44.1]} 12. Qxc2 {[%clk 0:03:30]}
12... Ne4 {[%clk 0:03:42.4]} 13. f3 {[%clk 0:03:22.4]} 13... Nf6 {[%clk
0:03:36.9]} 14. Nxc7 {[%clk 0:03:14.4]} 14... Ka7 {[%clk 0:03:31.6]} 15. Nb5+
{[%clk 0:02:55]} 1-0

[Event "Live Chess"]
[Site "Chess.com"]
[Date "2023.05.20"]
[Round "-"]
[White "Hacker_2009"]
[Black "PackedNote"]
[Result "1-0"]
[WhiteElo "1913"]
[BlackElo "781"]
[TimeControl "300"]
[EndTime "9:41:16 PDT"]
[Termination "Hacker_2009 won by checkmate"]

1. d4 {[%clk 0:04:59.1]} 1... d5 {[%clk 0:04:58.8]} 2. Nf3 {[%clk 0:04:58]} 2...
Nf6 {[%clk 0:04:56.6]} 3. e3 {[%clk 0:04:57.4]} 3... Bg4 {[%clk 0:04:55.6]} 4.
c4 {[%clk 0:04:56.6]} 4... e6 {[%clk 0:04:52.8]} 5. Nc3 {[%clk 0:04:56.1]} 5...
Be7 {[%clk 0:04:51.8]} 6. Be2 {[%clk 0:04:55.5]} 6... O-O {[%clk 0:04:50.6]} 7.
O-O {[%clk 0:04:55.1]} 7... c6 {[%clk 0:04:49.8]} 8. b3 {[%clk 0:04:54.5]} 8...
Nbd7 {[%clk 0:04:48.3]} 9. Bb2 {[%clk 0:04:54]} 9... h6 {[%clk 0:04:46.5]} 10.
Rc1 {[%clk 0:04:53.6]} 10... a6 {[%clk 0:04:42.8]} 11. cxd5 {[%clk 0:04:52.1]}
11... cxd5 {[%clk 0:04:41.8]} 12. Ne5 {[%clk 0:04:50.5]} 12... Bxe2 {[%clk
0:04:37]} 13. Qxe2 {[%clk 0:04:48.1]} 13... Nxe5 {[%clk 0:04:33.9]} 14. dxe5
{[%clk 0:04:48]} 14... Nd7 {[%clk 0:04:33.5]} 15. Na4 {[%clk 0:04:46.7]} 15...
Rc8 {[%clk 0:04:29.3]} 16. Rfd1 {[%clk 0:04:44.8]} 16... f6 {[%clk 0:04:23.7]}
17. exf6 {[%clk 0:04:43.3]} 17... Bxf6 {[%clk 0:04:21.5]} 18. Bxf6 {[%clk
0:04:42.2]} 18... Qxf6 {[%clk 0:04:16.7]} 19. Nb2 {[%clk 0:04:36.8]} 19... Rxc1
{[%clk 0:04:12.2]} 20. Rxc1 {[%clk 0:04:35.7]} 20... Re8 {[%clk 0:03:50.1]} 21.
Nd3 {[%clk 0:04:28.7]} 21... Nb6 {[%clk 0:03:42.3]} 22. h3 {[%clk 0:04:26.9]}
22... Rc8 {[%clk 0:03:40.5]} 23. Rxc8+ {[%clk 0:04:20.5]} 23... Nxc8 {[%clk
0:03:40.4]} 24. Qc2 {[%clk 0:04:19.7]} 24... Nd6 {[%clk 0:03:37.9]} 25. Nf4
{[%clk 0:04:06.1]} 25... e5 {[%clk 0:03:16.5]} 26. Nxd5 {[%clk 0:04:04.3]} 26...
Qe6 {[%clk 0:03:09.8]} 27. Nb6 {[%clk 0:04:01]} 27... Nb5 {[%clk 0:03:04]} 28.
Qc4 {[%clk 0:03:58.1]} 28... Qxc4 {[%clk 0:02:57.4]} 29. Nxc4 {[%clk 0:03:55.9]}
29... e4 {[%clk 0:02:52.3]} 30. Kh2 {[%clk 0:03:49.4]} 30... Kf7 {[%clk
0:02:51.5]} 31. Kg3 {[%clk 0:03:48.2]} 31... Ke6 {[%clk 0:02:50.1]} 32. Kf4
{[%clk 0:03:47.6]} 32... Kd5 {[%clk 0:02:49]} 33. Nb6+ {[%clk 0:03:45.3]} 33...
Kc5 {[%clk 0:02:46.5]} 34. Nd7+ {[%clk 0:03:43.8]} 34... Kd5 {[%clk 0:02:45.4]}
35. a4 {[%clk 0:03:34.2]} 35... Nc3 {[%clk 0:02:35.8]} 36. Kf5 {[%clk
0:03:31.9]} 36... b5 {[%clk 0:02:29.7]} 37. axb5 {[%clk 0:03:30.4]} 37... Nxb5
{[%clk 0:02:24.9]} 38. Kg6 {[%clk 0:03:29]} 38... Kd6 {[%clk 0:02:16.5]} 39. Nb6
{[%clk 0:03:27.7]} 39... Kc5 {[%clk 0:02:14.7]} 40. Nc4 {[%clk 0:03:20.6]} 40...
Nc3 {[%clk 0:02:11.5]} 41. Kxg7 {[%clk 0:03:19.5]} 41... Nd1 {[%clk 0:02:10.8]}
42. Kxh6 {[%clk 0:03:17.9]} 42... Nxf2 {[%clk 0:02:10]} 43. Kg5 {[%clk 0:03:17]}
43... Nd3 {[%clk 0:02:06.4]} 44. h4 {[%clk 0:03:16]} 44... Kb4 {[%clk
0:02:03.2]} 45. h5 {[%clk 0:03:15.3]} 45... Kxb3 {[%clk 0:02:02.7]} 46. Nb6
{[%clk 0:03:13.2]} 46... a5 {[%clk 0:02:00.2]} 47. h6 {[%clk 0:03:12.6]} 47...
a4 {[%clk 0:01:59.7]} 48. h7 {[%clk 0:03:11.8]} 48... a3 {[%clk 0:01:58]} 49.
h8=Q {[%clk 0:03:09.1]} 49... a2 {[%clk 0:01:57.4]} 50. Nd5 {[%clk 0:03:05.8]}
50... Nb2 {[%clk 0:01:56.5]} 51. Qc3+ {[%clk 0:03:02.9]} 51... Ka4 {[%clk
0:01:55]} 52. Qb4# {[%clk 0:03:02.5]} 1-0

[Event "Live Chess"]
[Site "Chess.com"]
[Date "2023.05.20"]
[Round "-"]
[White "ickabod1100"]
[Black "MaximKris"]
[Result "0-1"]
[WhiteElo "931"]
[BlackElo "1820"]
[TimeControl "300"]
[EndTime "9:41:26 PDT"]
[Termination "MaximKris won by resignation"]

1. e4 {[%clk 0:04:59]} 1... e5 {[%clk 0:04:58]} 2. Nf3 {[%clk 0:04:57]} 2... Nc6
{[%clk 0:04:57]} 3. d4 {[%clk 0:04:55.1]} 3... exd4 {[%clk 0:04:55.9]} 4. Nxd4
{[%clk 0:04:53.5]} 4... Nxd4 {[%clk 0:04:55.1]} 5. Qxd4 {[%clk 0:04:52.5]} 5...
Qf6 {[%clk 0:04:54.8]} 6. Qxf6 {[%clk 0:04:51.1]} 6... Nxf6 {[%clk 0:04:53.7]}
7. Nc3 {[%clk 0:04:48.9]} 7... d6 {[%clk 0:04:52.1]} 8. Bg5 {[%clk 0:04:44.3]}
8... Be6 {[%clk 0:04:50.5]} 9. Bxf6 {[%clk 0:04:43]} 9... gxf6 {[%clk
0:04:50.4]} 10. O-O-O {[%clk 0:04:41.7]} 10... O-O-O {[%clk 0:04:49.5]} 11. f4
{[%clk 0:04:31.4]} 11... f5 {[%clk 0:04:46.2]} 12. e5 {[%clk 0:04:28.7]} 12...
dxe5 {[%clk 0:04:44.3]} 13. Rxd8+ {[%clk 0:04:26.1]} 13... Kxd8 {[%clk
0:04:44.2]} 14. fxe5 {[%clk 0:04:25]} 14... Bh6+ {[%clk 0:04:44.1]} 15. Kb1
{[%clk 0:04:22.3]} 15... Kc8 {[%clk 0:04:44]} 16. Be2 {[%clk 0:04:15.6]} 16...
Rd8 {[%clk 0:04:39.6]} 17. b3 {[%clk 0:04:12.1]} 17... Rd2 {[%clk 0:04:36.8]}
18. Bf3 {[%clk 0:04:02.4]} 18... Be3 {[%clk 0:04:29.6]} 19. Nb5 {[%clk
0:03:57.7]} 19... a6 {[%clk 0:04:22.8]} 20. Na3 {[%clk 0:03:54.5]} 20... Bd4
{[%clk 0:04:21]} 21. Nc4 {[%clk 0:03:48.6]} 21... Bxc4 {[%clk 0:04:19.3]} 22.
bxc4 {[%clk 0:03:46.7]} 22... Bxe5 {[%clk 0:04:18.9]} 23. Bh5 {[%clk 0:03:42.8]}
23... Rd6 {[%clk 0:04:17.5]} 24. Bxf7 {[%clk 0:03:38.7]} 24... Rb6+ {[%clk
0:04:16.9]} 25. Kc1 {[%clk 0:03:37.3]} 25... Bf4+ {[%clk 0:04:16.8]} 26. Kd1
{[%clk 0:03:34.9]} 26... Rb1+ {[%clk 0:04:16.7]} 0-1

[Event "Live Chess"]
[Site "Chess.com"]
[Date "2023.05.20"]
[Round "-"]
[White "vinni3012"]
[Black "CheckString"]
[Result "1-0"]
[WhiteElo "1881"]
[BlackElo "1349"]
[TimeControl "300"]
[EndTime "9:41:29 PDT"]
[Termination "vinni3012 won by resignation"]

1. d4 {[%clk 0:04:57.5]} 1... c6 {[%clk 0:04:58.6]} 2. c4 {[%clk 0:04:56.7]}
2... d5 {[%clk 0:04:57.7]} 3. cxd5 {[%clk 0:04:45]} 3... cxd5 {[%clk 0:04:57.6]}
4. Nc3 {[%clk 0:04:44.2]} 4... Nc6 {[%clk 0:04:53.7]} 5. Nf3 {[%clk 0:04:41.6]}
5... Nf6 {[%clk 0:04:51.4]} 6. e3 {[%clk 0:04:35.2]} 6... a6 {[%clk 0:04:48.4]}
7. h3 {[%clk 0:04:33.9]} 7... e6 {[%clk 0:04:47.3]} 8. Bd2 {[%clk 0:04:33]} 8...
Bd6 {[%clk 0:04:40.2]} 9. Bd3 {[%clk 0:04:31.7]} 9... O-O {[%clk 0:04:37.5]} 10.
O-O {[%clk 0:04:30.7]} 10... b5 {[%clk 0:04:35.3]} 11. Rc1 {[%clk 0:04:13.1]}
11... Bb7 {[%clk 0:04:25.4]} 12. Qe2 {[%clk 0:03:44.5]} 12... Rc8 {[%clk
0:04:11.1]} 13. Bb1 {[%clk 0:03:12]} 13... Qe7 {[%clk 0:03:40.9]} 14. e4 {[%clk
0:02:56.8]} 14... Rfe8 {[%clk 0:03:12.7]} 15. e5 {[%clk 0:02:51.5]} 15... Bb4
{[%clk 0:02:56.6]} 16. exf6 {[%clk 0:02:49.2]} 16... Qxf6 {[%clk 0:02:56.1]} 17.
Qd3 {[%clk 0:02:37]} 17... g6 {[%clk 0:02:52.9]} 18. Ne2 {[%clk 0:02:02.3]}
18... Bxd2 {[%clk 0:02:48.1]} 19. Qxd2 {[%clk 0:02:02.2]} 19... Nd8 {[%clk
0:02:40.5]} 20. Rxc8 {[%clk 0:01:59.2]} 20... Bxc8 {[%clk 0:02:37.8]} 21. Rc1
{[%clk 0:01:57.7]} 21... Nb7 {[%clk 0:02:36.8]} 22. Ne5 {[%clk 0:01:45.3]} 22...
Nd6 {[%clk 0:02:29.5]} 23. b3 {[%clk 0:01:40.2]} 23... Ne4 {[%clk 0:02:27.9]}
24. Bxe4 {[%clk 0:01:38.9]} 24... dxe4 {[%clk 0:02:27.1]} 25. Ng3 {[%clk
0:01:22]} 25... Rd8 {[%clk 0:02:25]} 26. Nxe4 {[%clk 0:01:15.8]} 26... Qxe5
{[%clk 0:02:23.3]} 27. dxe5 {[%clk 0:01:15.7]} 27... Rxd2 {[%clk 0:02:22.3]} 28.
Nxd2 {[%clk 0:01:15.6]} 28... Bb7 {[%clk 0:02:21.5]} 29. f3 {[%clk 0:01:14.2]}
29... Kg7 {[%clk 0:02:19.9]} 30. Ne4 {[%clk 0:01:13.5]} 30... f6 {[%clk
0:02:19.8]} 31. exf6+ {[%clk 0:01:12.6]} 31... Kf7 {[%clk 0:02:19.4]} 32. Rc7+
{[%clk 0:01:11.4]} 32... Ke8 {[%clk 0:02:17.4]} 33. Rxb7 {[%clk 0:01:11.3]}
33... Kf8 {[%clk 0:02:16.9]} 34. Rxh7 {[%clk 0:01:09.5]} 34... Ke8 {[%clk
0:02:16.2]} 35. f7+ {[%clk 0:01:07.4]} 1-0

[Event "Live Chess"]
[Site "Chess.com"]
[Date "2023.05.20"]
[Round "-"]
[White "Tushinskiy"]
[Black "Jeffaroow"]
[Result "1-0"]
[WhiteElo "2095"]
[BlackElo "451"]
[TimeControl "300"]
[EndTime "9:41:31 PDT"]
[Termination "Tushinskiy won by resignation"]

1. d4 {[%clk 0:04:45]} 1... d5 {[%clk 0:04:54.9]} 2. c3 {[%clk 0:04:44.9]} 2...
Nc6 {[%clk 0:04:52.6]} 3. Nf3 {[%clk 0:04:44.8]} 3... Nf6 {[%clk 0:04:49.5]} 4.
Bf4 {[%clk 0:04:44.7]} 4... Bf5 {[%clk 0:04:45.5]} 5. Bg3 {[%clk 0:04:44.6]}
5... e6 {[%clk 0:04:40.6]} 6. e3 {[%clk 0:04:40.9]} 6... Bd6 {[%clk 0:04:39.3]}
7. Bd3 {[%clk 0:04:38.6]} 7... Bxg3 {[%clk 0:04:38]} 8. hxg3 {[%clk 0:04:36.8]}
8... Bxd3 {[%clk 0:04:37.3]} 9. Qxd3 {[%clk 0:04:35.4]} 9... O-O {[%clk
0:04:35.9]} 10. Nbd2 {[%clk 0:04:34.4]} 10... h6 {[%clk 0:04:25.9]} 11. O-O-O
{[%clk 0:04:32.4]} 11... Ne4 {[%clk 0:04:22.4]} 12. Nxe4 {[%clk 0:04:28.4]}
12... dxe4 {[%clk 0:04:20.7]} 13. Qxe4 {[%clk 0:04:28.3]} 13... f5 {[%clk
0:04:17.6]} 14. Qxe6+ {[%clk 0:04:26.9]} 14... Rf7 {[%clk 0:04:08.3]} 15. d5
{[%clk 0:04:24.9]} 15... Na5 {[%clk 0:03:54.6]} 16. Ne5 {[%clk 0:04:23]} 1-0

[Event "Live Chess"]
[Site "Chess.com"]
[Date "2023.05.20"]
[Round "-"]
[White "Hussamalhaidar"]
[Black "ramses-IIG"]
[Result "1-0"]
[WhiteElo "969"]
[BlackElo "743"]
[TimeControl "300"]
[EndTime "9:41:54 PDT"]
[Termination "Hussamalhaidar won by resignation"]

1. b3 {[%clk 0:04:56.3]} 1... d5 {[%clk 0:04:51.5]} 2. Bb2 {[%clk 0:04:54.6]}
2... Nc6 {[%clk 0:04:47]} 3. e3 {[%clk 0:04:48]} 3... e5 {[%clk 0:04:45.9]} 4.
Bb5 {[%clk 0:04:40]} 4... Bd7 {[%clk 0:04:43]} 5. Bxc6 {[%clk 0:04:38.3]} 5...
Bxc6 {[%clk 0:04:42.9]} 6. Bxe5 {[%clk 0:04:37.7]} 6... f6 {[%clk 0:04:39.1]} 7.
Bb2 {[%clk 0:04:35.3]} 7... Bb4 {[%clk 0:04:35]} 8. Nf3 {[%clk 0:04:30.1]} 8...
Qe7 {[%clk 0:04:27.1]} 9. O-O {[%clk 0:04:17.8]} 9... h5 {[%clk 0:04:23]} 10. a3
{[%clk 0:04:15.6]} 10... Bd6 {[%clk 0:04:16.8]} 11. d3 {[%clk 0:04:10.1]} 11...
O-O-O {[%clk 0:04:15.2]} 12. c4 {[%clk 0:04:03.7]} 12... h4 {[%clk 0:04:07.1]}
13. h3 {[%clk 0:03:55.6]} 13... Be8 {[%clk 0:03:58.3]} 14. Nbd2 {[%clk
0:03:46.6]} 14... Bh5 {[%clk 0:03:46.5]} 15. b4 {[%clk 0:03:40.4]} 15... Bxf3
{[%clk 0:03:42.5]} 16. Nxf3 {[%clk 0:03:33.9]} 16... dxc4 {[%clk 0:03:37.1]} 17.
d4 {[%clk 0:03:24.1]} 17... Nh6 {[%clk 0:03:32.8]} 18. Nxh4 {[%clk 0:02:52.9]}
18... g5 {[%clk 0:03:22.1]} 19. Ng6 {[%clk 0:02:47.7]} 19... Qe6 {[%clk
0:03:10.8]} 20. Nxh8 {[%clk 0:02:41]} 20... Rxh8 {[%clk 0:03:10.7]} 21. Qf3
{[%clk 0:02:27.1]} 21... Nf5 {[%clk 0:03:02.6]} 22. d5 {[%clk 0:02:17.1]} 22...
Nh4 {[%clk 0:02:15.9]} 23. Qxf6 {[%clk 0:01:47.5]} 23... Qe4 {[%clk 0:01:55.7]}
24. Qxh8+ {[%clk 0:00:59.6]} 24... Kd7 {[%clk 0:01:53.3]} 25. Qg7+ {[%clk
0:00:53.5]} 25... Be7 {[%clk 0:01:52.1]} 26. f3 {[%clk 0:00:44.4]} 26... Qxe3+
{[%clk 0:01:47.9]} 27. Rf2 {[%clk 0:00:35.5]} 27... c3 {[%clk 0:01:38.8]} 28.
Qxc3 {[%clk 0:00:30]} 28... Qf4 {[%clk 0:01:34.4]} 29. Re1 {[%clk 0:00:18.9]}
29... Qh2+ {[%clk 0:01:33]} 30. Kxh2 {[%clk 0:00:16]} 1-0

[Event "Live Chess"]
[Site "Chess.com"]
[Date "2023.05.20"]
[Round "-"]
[White "luckywookie"]
[Black "ReeceHockton"]
[Result "1-0"]
[WhiteElo "719"]
[BlackElo "321"]
[TimeControl "300"]
[EndTime "9:41:54 PDT"]
[Termination "luckywookie won by checkmate"]

1. e4 {[%clk 0:04:53.9]} 1... e5 {[%clk 0:04:58.9]} 2. c3 {[%clk 0:04:52]} 2...
Nc6 {[%clk 0:04:57]} 3. Nf3 {[%clk 0:04:49.5]} 3... d6 {[%clk 0:04:53.2]} 4. d4
{[%clk 0:04:48.3]} 4... exd4 {[%clk 0:04:50.5]} 5. cxd4 {[%clk 0:04:43.3]} 5...
f6 {[%clk 0:04:45.8]} 6. Nc3 {[%clk 0:04:38]} 6... Bg4 {[%clk 0:04:43.2]} 7. d5
{[%clk 0:04:21.7]} 7... Ne5 {[%clk 0:04:37.3]} 8. Be2 {[%clk 0:04:17]} 8...
Nxf3+ {[%clk 0:04:23.9]} 9. Bxf3 {[%clk 0:04:15.2]} 9... Bxf3 {[%clk 0:04:19.8]}
10. Qxf3 {[%clk 0:04:13.1]} 10... Ne7 {[%clk 0:04:12.4]} 11. O-O {[%clk
0:04:09.9]} 11... h6 {[%clk 0:03:54]} 12. Qh5+ {[%clk 0:04:06.9]} 12... Kd7
{[%clk 0:03:46.2]} 13. Qf7 {[%clk 0:03:51.7]} 13... Qe8 {[%clk 0:03:42]} 14.
Qe6+ {[%clk 0:03:49.4]} 14... Kd8 {[%clk 0:03:35.9]} 15. Nb5 {[%clk 0:03:42.7]}
15... Qxb5 {[%clk 0:03:30.8]} 16. b3 {[%clk 0:03:15.3]} 16... a5 {[%clk
0:03:25.9]} 17. a4 {[%clk 0:03:13.3]} 17... Qxb3 {[%clk 0:03:14.9]} 18. Be3
{[%clk 0:03:10.4]} 18... Qb4 {[%clk 0:03:05.6]} 19. Rfb1 {[%clk 0:03:01.3]}
19... Qc3 {[%clk 0:02:20.1]} 20. Rc1 {[%clk 0:02:51.7]} 20... Qb2 {[%clk
0:02:15.9]} 21. Rab1 {[%clk 0:02:41.7]} 21... Qa2 {[%clk 0:02:09.2]} 22. Rxb7
{[%clk 0:02:12.4]} 22... g5 {[%clk 0:01:23.2]} 23. Rbxc7 {[%clk 0:02:08.5]}
23... Qb2 {[%clk 0:01:08.5]} 24. Qd7# {[%clk 0:02:02.8]} 1-0

[Event "Live Chess"]
[Site "Chess.com"]
[Date "2023.05.20"]
[Round "-"]
[White "Supertromp"]
[Black "OSmith06"]
[Result "1-0"]
[WhiteElo "2164"]
[BlackElo "1736"]
[TimeControl "300"]
[EndTime "9:41:58 PDT"]
[Termination "Supertromp won by resignation"]

1. e4 {[%clk 0:04:58]} 1... c6 {[%clk 0:04:58.9]} 2. d4 {[%clk 0:04:54.6]} 2...
d5 {[%clk 0:04:58.5]} 3. exd5 {[%clk 0:04:53.4]} 3... cxd5 {[%clk 0:04:58.4]} 4.
Bd3 {[%clk 0:04:52.1]} 4... Nc6 {[%clk 0:04:56.8]} 5. c3 {[%clk 0:04:51]} 5...
e5 {[%clk 0:04:54.3]} 6. dxe5 {[%clk 0:04:45.5]} 6... Nxe5 {[%clk 0:04:54.2]} 7.
Bc2 {[%clk 0:04:35.1]} 7... Nf6 {[%clk 0:04:52]} 8. Nf3 {[%clk 0:04:25]} 8...
Bd6 {[%clk 0:04:45.4]} 9. h3 {[%clk 0:04:08.8]} 9... O-O {[%clk 0:04:39.7]} 10.
O-O {[%clk 0:04:06.8]} 10... Re8 {[%clk 0:04:36]} 11. Bg5 {[%clk 0:03:58.7]}
11... h6 {[%clk 0:04:31.1]} 12. Bh4 {[%clk 0:03:56.7]} 12... b6 {[%clk
0:04:24.2]} 13. Nbd2 {[%clk 0:03:38.9]} 13... Bb7 {[%clk 0:04:21.5]} 14. Nxe5
{[%clk 0:03:36.4]} 14... Bxe5 {[%clk 0:04:17.1]} 15. Nf3 {[%clk 0:03:35.8]}
15... Bd6 {[%clk 0:04:11.6]} 16. Nd4 {[%clk 0:03:30.1]} 16... Rc8 {[%clk
0:03:47.5]} 17. Qd3 {[%clk 0:03:27.9]} 17... g6 {[%clk 0:03:33.2]} 18. Rae1
{[%clk 0:03:03.2]} 18... Rxe1 {[%clk 0:03:18.8]} 19. Rxe1 {[%clk 0:03:03.1]}
19... g5 {[%clk 0:03:18.3]} 20. Bg3 {[%clk 0:02:49.6]} 20... Bxg3 {[%clk
0:03:16.7]} 21. Qxg3 {[%clk 0:02:49.5]} 21... Ne4 {[%clk 0:03:11.2]} 22. Qg4
{[%clk 0:02:30.6]} 22... Qf6 {[%clk 0:02:56.4]} 23. f3 {[%clk 0:02:10.9]} 23...
Nd6 {[%clk 0:02:26.7]} 24. h4 {[%clk 0:02:05.3]} 24... Re8 {[%clk 0:02:11.9]}
25. Rxe8+ {[%clk 0:01:56.3]} 25... Nxe8 {[%clk 0:02:11.8]} 26. hxg5 {[%clk
0:01:50.4]} 26... Qxg5 {[%clk 0:02:09.2]} 27. Qd7 {[%clk 0:01:49.1]} 27... Qe3+
{[%clk 0:01:59.1]} 28. Kh1 {[%clk 0:01:38.6]} 28... Qe1+ {[%clk 0:01:51.2]} 29.
Kh2 {[%clk 0:01:37.9]} 29... Qh4+ {[%clk 0:01:48.4]} 30. Qh3 {[%clk 0:01:37.4]}
30... Qf4+ {[%clk 0:01:40.3]} 31. Qg3+ {[%clk 0:01:36.5]} 31... Qxg3+ {[%clk
0:01:38.5]} 32. Kxg3 {[%clk 0:01:36.4]} 32... Nf6 {[%clk 0:01:36.2]} 33. Kf4
{[%clk 0:01:33.1]} 33... Kg7 {[%clk 0:01:31.9]} 34. g4 {[%clk 0:01:31.8]} 34...
a6 {[%clk 0:01:25.1]} 35. Nf5+ {[%clk 0:01:30.7]} 35... Kg6 {[%clk 0:01:21.7]}
36. Nd6+ {[%clk 0:01:29.5]} 1-0

[Event "Live Chess"]
[Site "Chess.com"]
[Date "2023.05.20"]
[Round "-"]
[White "Ocelot32"]
[Black "therealab0ne"]
[Result "1-0"]
[WhiteElo "1391"]
[BlackElo "677"]
[TimeControl "300"]
[EndTime "9:42:12 PDT"]
[Termination "Ocelot32 won by checkmate"]

1. e4 {[%clk 0:04:55.8]} 1... g6 {[%clk 0:04:55.4]} 2. d4 {[%clk 0:04:53.6]}
2... Bg7 {[%clk 0:04:54.5]} 3. Nf3 {[%clk 0:04:51.6]} 3... d6 {[%clk 0:04:54]}
4. c4 {[%clk 0:04:49.8]} 4... a6 {[%clk 0:04:53.4]} 5. Nc3 {[%clk 0:04:48.6]}
5... Bd7 {[%clk 0:04:37.7]} 6. Be2 {[%clk 0:04:42.6]} 6... b5 {[%clk 0:04:16.3]}
7. cxb5 {[%clk 0:04:35.5]} 7... axb5 {[%clk 0:04:15.2]} 8. Bxb5 {[%clk
0:04:30.6]} 8... e5 {[%clk 0:03:59.7]} 9. d5 {[%clk 0:04:15.1]} 9... Bxb5 {[%clk
0:03:30.7]} 10. Nxb5 {[%clk 0:04:11.9]} 10... Nd7 {[%clk 0:03:22.1]} 11. O-O
{[%clk 0:04:09.3]} 11... Rc8 {[%clk 0:03:02.6]} 12. Bg5 {[%clk 0:03:55.5]} 12...
Ngf6 {[%clk 0:02:59.3]} 13. Re1 {[%clk 0:03:40.6]} 13... Nc5 {[%clk 0:02:44.2]}
14. b3 {[%clk 0:03:23.7]} 14... Qd7 {[%clk 0:02:28.9]} 15. Na7 {[%clk
0:03:12.1]} 15... Rb8 {[%clk 0:01:36.4]} 16. Nc6 {[%clk 0:03:08]} 16... Nfxe4
{[%clk 0:01:12.3]} 17. Nxb8 {[%clk 0:02:56.6]} 17... Qb5 {[%clk 0:00:49.7]} 18.
Nc6 {[%clk 0:02:40.1]} 18... Nxg5 {[%clk 0:00:19.2]} 19. Nxg5 {[%clk 0:02:30.4]}
19... Nd3 {[%clk 0:00:18.4]} 20. Qf3 {[%clk 0:02:15.2]} 20... e4 {[%clk
0:00:08.6]} 21. Qxf7# {[%clk 0:02:12.3]} 1-0

[Event "Live Chess"]
[Site "Chess.com"]
[Date "2023.05.20"]
[Round "-"]
[White "MarkLim1"]
[Black "wadsy27"]
[Result "0-1"]
[WhiteElo "1602"]
[BlackElo "2587"]
[TimeControl "300"]
[EndTime "9:42:13 PDT"]
[Termination "wadsy27 won by resignation"]

1. d4 {[%clk 0:04:57.6]} 1... d5 {[%clk 0:04:53.4]} 2. Nf3 {[%clk 0:04:56.2]}
2... Nf6 {[%clk 0:04:52.1]} 3. c4 {[%clk 0:04:55.4]} 3... c6 {[%clk 0:04:51.4]}
4. cxd5 {[%clk 0:04:54.5]} 4... cxd5 {[%clk 0:04:50.7]} 5. Nc3 {[%clk
0:04:54.1]} 5... Nc6 {[%clk 0:04:50.2]} 6. Bf4 {[%clk 0:04:53.7]} 6... a6 {[%clk
0:04:48.3]} 7. Rc1 {[%clk 0:04:52.5]} 7... Bf5 {[%clk 0:04:46.6]} 8. e3 {[%clk
0:04:47.3]} 8... e6 {[%clk 0:04:45.7]} 9. Be2 {[%clk 0:04:40.7]} 9... Be7 {[%clk
0:04:38.7]} 10. O-O {[%clk 0:04:39.5]} 10... O-O {[%clk 0:04:37.8]} 11. h3
{[%clk 0:04:38.5]} 11... h6 {[%clk 0:04:33.7]} 12. Qb3 {[%clk 0:04:37.1]} 12...
Na5 {[%clk 0:04:32.4]} 13. Qd1 {[%clk 0:04:35.4]} 13... b5 {[%clk 0:04:28]} 14.
a3 {[%clk 0:04:28.8]} 14... Nc4 {[%clk 0:04:25]} 15. Qb3 {[%clk 0:04:26.5]}
15... Ne4 {[%clk 0:04:11.8]} 16. Rfd1 {[%clk 0:04:22.1]} 16... g5 {[%clk
0:03:58.5]} 17. Bh2 {[%clk 0:04:15.1]} 17... f6 {[%clk 0:03:57.6]} 18. Nxe4
{[%clk 0:04:11.2]} 18... Bxe4 {[%clk 0:03:56.4]} 19. Nd2 {[%clk 0:04:00.3]}
19... Bg6 {[%clk 0:03:54.7]} 20. Nxc4 {[%clk 0:03:34.5]} 20... bxc4 {[%clk
0:03:52.2]} 21. Qc3 {[%clk 0:03:30.3]} 21... Qb6 {[%clk 0:03:41.7]} 22. f3
{[%clk 0:03:16.9]} 22... Ra7 {[%clk 0:03:34.1]} 23. Re1 {[%clk 0:03:01.6]} 23...
Rb7 {[%clk 0:03:31.3]} 24. e4 {[%clk 0:02:53.2]} 24... e5 {[%clk 0:03:10.6]} 25.
exd5 {[%clk 0:02:49.1]} 25... exd4 {[%clk 0:03:08.8]} 26. Qxc4 {[%clk
0:02:47.1]} 26... d3+ {[%clk 0:03:07.8]} 27. Kh1 {[%clk 0:02:44.8]} 27... d2
{[%clk 0:02:56.4]} 0-1